fUSD/lending_fUSD_20240121
["ID","MTS","AMOUNT","RATE_DAILY","PERIOD"]
[312402006,1705858353108,-500.0,0.00043835,31]
[312402007,1705858353118,-7045.39,0.00043835,31]
[312402008,1705858353128,-1262.27,0.00043835,31]
[312402009,1705858353138,-500.0,0.00043835,31]
[312402010,1705858353148,-690.37,0.00043835,31]
[312402011,1705858353159,-520.83,0.00043835,31]
[312402012,1705858353169,-500.0,0.00043835,31]
[312402013,1705858353179,-757.17,0.00043835,31]
[312402014,1705858353189,-5696.35,0.00043835,31]
[312402015,1705858353198,-353.81,0.00043835,31]
[312402016,1705858353209,-1837.87,0.00043835,31]
[312402017,1705858353218,-500.0,0.00043835,31]
[312402018,1705858353228,-500.0,0.00043835,31]
[312402019,1705858353238,-908.52,0.00043835,31]
[312402020,1705858353248,-500.0,0.00043835,31]
[312402021,1705858353257,-9649.82,0.00043835,31]
[312402022,1705858353267,-1916.53,0.00043835,31]
[312402023,1705858353277,-1240.43,0.00043835,31]
[312402024,1705858353286,-500.0,0.00043835,31]
[312402025,1705858353296,-695.14,0.00043835,31]
[312402026,1705858353305,-500.0,0.00043835,31]
[312402027,1705858353315,-500.0,0.00043835,31]
[312402028,1705858353325,-1114.6,0.00043835,31]
[312402029,1705858353334,-500.0,0.00043835,31]
[312402030,1705858353344,-1341.69,0.00043835,31]
[312402031,1705858353354,-500.0,0.00043835,31]
[312402032,1705858353363,-921.33,0.00043835,31]
[312402033,1705858353373,-1113.57,0.00043835,31]
[312402034,1705858353382,-5530.48,0.00043835,31]
[312402035,1705858353392,-793.66,0.00043835,31]
[312402036,1705858353402,-500.0,0.00043835,31]
[312402037,1705858353412,-795.91,0.00043835,31]
[312402038,1705858353422,-500.0,0.00043835,31]
[312402039,1705858353432,-500.0,0.00043835,31]
[312402040,1705858353442,-1440.05,0.00043835,31]
[312402041,1705858353451,-3700.14,0.00043835,31]
[312402042,1705858353461,-2092.99,0.00043835,31]
[312402043,1705858353470,-1000.0,0.00043835,2]
[312402044,1705858353480,-10145.93,0.00043835,31]
[312402045,1705858353489,-745.1,0.00043835,31]
[312402046,1705858353498,-1414.9,0.00043835,31]
[312402047,1705858353508,-505.43,0.00043835,31]
[312402048,1705858353518,-521.95,0.00043835,31]
[312402049,1705858353527,-513.0440126,0.00043835,31]
[312402050,1705858353537,-500.0,0.00043835,31]
[312402051,1705858353547,-680.26,0.00043835,5]
[312402052,1705858353557,-909.92,0.00043835,31]
[312402053,1705858353566,-647.36,0.00043835,31]
[312402054,1705858353576,-969.71,0.00043835,31]
[312402055,1705858353586,-4142.89,0.00043835,31]
[312402056,1705858353595,-500.0,0.00043835,31]
[312402057,1705858353605,-500.0,0.00043835,31]
[312402058,1705858353614,-816.06,0.00043835,31]
[312402059,1705858353628,-500.0,0.00043835,31]
[312402060,1705858353638,-500.0,0.00043835,31]
[312402061,1705858353647,-2663.37,0.00043835,31]
[312402062,1705858353656,-500.0,0.00043835,31]
[312402063,1705858353665,-696.72,0.00043835,31]
[312402064,1705858353675,-525.38,0.00043835,31]
[312402065,1705858353685,-764.09,0.00043835,31]
[312402066,1705858353694,-500.0,0.00043835,31]
[312402067,1705858353703,-500.0,0.00043835,31]
[312402068,1705858353713,-1574.71,0.00043835,31]
[312402069,1705858353723,-9891.3,0.00043835,31]
[312402070,1705858353733,-5145.07,0.00043835,31]
[312402071,1705858353742,-932.94,0.00043835,31]
[312402072,1705858353752,-831.28,0.00043835,31]
[312402073,1705858353762,-500.0,0.00043835,31]
[312402074,1705858353771,-1364.93,0.00043835,31]
[312402075,1705858353781,-3404.67,0.00043835,31]
[312402076,1705858353790,-2645.34,0.00043835,31]
[312402077,1705858353799,-735.01,0.00043835,31]
[312402078,1705858353809,-500.0,0.00043835,31]
[312402079,1705858353819,-500.0,0.00043835,31]
[312402080,1705858353829,-500.0,0.00043835,31]
[312402081,1705858353839,-1174.77,0.00043835,31]
[312402082,1705858353849,-738.19,0.00043835,31]
[312402083,1705858353858,-500.0,0.00043835,31]
[312402084,1705858353867,-14562.01,0.00043835,31]
[312402085,1705858353877,-944.69,0.00043835,31]
[312402086,1705858353886,-1080.05,0.00043835,31]
[312402087,1705858353896,-1450.35,0.00043835,31]
[312402088,1705858353905,-653.64,0.00043835,31]
[312402089,1705858353915,-500.0,0.00043835,31]
[312402090,1705858353925,-500.0,0.00043835,31]
[312402091,1705858353935,-38083.32,0.00043835,31]
[312402092,1705858353946,-772.68,0.00043835,31]
[312402093,1705858353955,-9951.76,0.00043835,31]
[312402094,1705858353965,-996.84,0.00043835,31]
[312402095,1705858353974,-526.57,0.00043835,31]
[312402096,1705858353984,-1180.64,0.00043835,31]
[312402097,1705858353994,-500.0,0.00043835,31]
[312402098,1705858354004,-13566.67,0.00043835,31]
[312402099,1705858354013,-268.64,0.00043835,31]
[312402100,1705858354023,-500.0,0.00043835,31]
[312402101,1705858354032,-2702.04,0.00043835,31]
[312402102,1705858354043,-2370.4,0.00043835,31]
[312402103,1705858354053,-710.24,0.00043835,31]
[312402104,1705858354063,-500.0,0.00043835,31]
[312402105,1705858354074,-841.85,0.00043835,31]
[312402106,1705858354085,-500.0,0.00043835,31]
[312402107,1705858354095,-650.75,0.00043835,31]
[312402108,1705858354104,-891.39,0.00043835,31]
[312402109,1705858354114,-500.0,0.00043835,31]
[312402110,1705858354123,-523.56352762,0.00043835,31]
[312402111,1705858354133,-500.0,0.00043835,31]
[312402112,1705858354142,-500.0,0.00043835,31]
[312402113,1705858354152,-5635.24,0.00043835,31]
[312402114,1705858354162,-500.0,0.00043835,31]
[312402115,1705858354173,-500.0,0.00043835,31]
[312402116,1705858354182,-500.0,0.00043835,31]
[312402117,1705858354191,-2410.09,0.00043835,31]
[312402118,1705858354201,-500.0,0.00043835,30]
[312402119,1705858354211,-1587.22,0.00043835,31]
[312402120,1705858354221,-500.0,0.00043835,31]
[312402121,1705858354230,-2811.02,0.00043835,31]
[312402122,1705858354240,-500.0,0.00043835,31]
[312402123,1705858354249,-1486.68,0.00043835,31]
[312402124,1705858354259,-1020.67,0.00043835,31]
[312402125,1705858354268,-766.24,0.00043835,31]
[312402126,1705858354277,-500.0,0.00043835,31]
[312402127,1705858354287,-500.0,0.00043835,31]
[312402128,1705858354297,-500.0,0.00043835,31]
[312402129,1705858354305,-4475.3,0.00043835,31]
[312402130,1705858354315,-678.56,0.00043835,31]
[312402131,1705858354324,-4341.11,0.00043835,31]
[312402132,1705858354333,-500.0,0.00043835,31]
[312402133,1705858354343,-500.0,0.00043835,31]
[312402134,1705858354353,-500.0,0.00043835,31]
[312402135,1705858354362,-893.6,0.00043835,31]
[312402136,1705858354372,-500.0,0.00043835,31]
[312402137,1705858354381,-1312.71,0.00043835,31]
[312402138,1705858354391,-718.8,0.00043835,31]
[312402139,1705858354399,-500.0,0.00043835,31]
[312402140,1705858354409,-1879.16,0.00043835,31]
[312402141,1705858354418,-843.82,0.00043835,31]
[312402142,1705858354427,-512.71,0.00043835,31]
[312402143,1705858354437,-1267.64,0.00043835,31]
[312402144,1705858354446,-808.75,0.00043835,31]
[312402145,1705858354455,-586.73,0.00043835,31]
[312402146,1705858354465,-1163.91,0.00043835,31]
[312402147,1705858354474,-394.47250819,0.00043835,31]
[312402148,1705858354484,-2402.4,0.00043835,31]
[312402149,1705858354493,-500.0,0.00043835,31]
[312402150,1705858354502,-500.0,0.00043835,31]
[312402151,1705858354511,-500.0,0.00043835,31]
[312402152,1705858354521,-1028.17,0.00043835,31]
[312402153,1705858354530,-767.97,0.00043835,31]
[312402154,1705858354540,-822.33,0.00043835,31]
[312402155,1705858354549,-1331.9,0.00043835,31]
[312402156,1705858354559,-1231.24,0.00043835,31]
[312402157,1705858354567,-500.0,0.00043835,31]
[312402158,1705858354577,-951.78,0.00043835,31]
[312402159,1705858354586,-673.38,0.00043835,31]
[312402160,1705858354595,-623.65,0.00043835,31]
[312402161,1705858354604,-4814.61,0.00043835,31]
[312402162,1705858354614,-2661.69,0.00043835,31]
[312402163,1705858354623,-2221.22,0.00043835,31]
[312402164,1705858354632,-1307.43,0.00043835,31]
[312402165,1705858354642,-1998.1,0.00043835,31]
[312402166,1705858354654,-2919.4,0.00043835,31]
[312402167,1705858354663,-500.0,0.00043835,31]
[312402168,1705858354672,-1516.66,0.00043835,31]
[312402169,1705858354681,-4554.17,0.00043835,31]
[312402170,1705858354690,-1723.52,0.00043835,31]
[312402171,1705858354699,-500.0,0.00043835,31]
[312402172,1705858354708,-500.0,0.00043835,31]
[312402173,1705858354717,-715.12,0.00043835,31]
[312402174,1705858354726,-966.48,0.00043835,31]
[312402175,1705858354735,-1352.25,0.00043835,31]
[312402176,1705858354744,-1024.58,0.00043835,31]
[312402177,1705858354754,-542.95578104,0.00043835,31]
[312402178,1705858354762,-500.0,0.00043835,31]
[312402179,1705858354772,-15221.27,0.00043835,31]
[312402180,1705858354780,-500.0,0.00043835,31]
[312402181,1705858354789,-1317.11,0.00043835,31]
[312402182,1705858354799,-500.0,0.00043835,31]
[312402183,1705858354809,-500.0,0.00043835,31]
[312402184,1705858354818,-801.04,0.00043835,31]
[312402185,1705858354827,-719.66,0.00043835,31]
[312402186,1705858354837,-445.6,0.00043835,31]
[312402187,1705858354846,-2450.04,0.00043835,31]
[312402188,1705858354855,-500.0,0.00043835,31]
[312402189,1705858354865,-2398.67,0.00043835,31]
[312402190,1705858354874,-1102.3,0.00043835,31]
[312402191,1705858354883,-11755.0,0.00043835,31]
[312402192,1705858354892,-500.0,0.00043835,31]
[312402193,1705858354901,-580.18,0.00043835,31]
[312402194,1705858354910,-6029.9,0.00043835,31]
[312402195,1705858354919,-500.0,0.00043835,31]
[312402196,1705858354930,-500.0,0.00043835,31]
[312402197,1705858354940,-4782.28,0.00043835,31]
[312402198,1705858354950,-747.5,0.00043835,31]
[312402199,1705858354960,-1275.11,0.00043835,31]
[312402200,1705858354970,-633.63,0.00043835,31]
[312402201,1705858354980,-510.70126631,0.00043835,31]
[312402202,1705858354990,-1385.95,0.00043835,31]
[312402203,1705858354999,-838.42,0.00043835,31]
[312402204,1705858355009,-1278.23,0.00043835,31]
[312402205,1705858355019,-405.46,0.00043835,31]
[312402206,1705858355028,-500.0,0.00043835,31]
[312402207,1705858355037,-659.66,0.00043835,31]
[312402208,1705858355047,-2022.75,0.00043835,31]
[312402209,1705858355057,-848.6,0.00043835,31]
[312402210,1705858355068,-3652.55,0.00043835,31]
[312402211,1705858355080,-3523.18,0.00043835,31]
[312402212,1705858355089,-718.17,0.00043835,31]
[312402213,1705858355099,-898.33,0.00043835,31]
[312402214,1705858355108,-500.0,0.00043835,31]
[312402215,1705858355118,-6799.03,0.00043835,31]
[312402216,1705858355127,-1141.22,0.00043835,31]
[312402217,1705858355137,-1741.89,0.00043835,31]
[312402218,1705858355146,-1623.13,0.00043835,31]
[312402219,1705858355158,-500.0,0.00043835,31]
[312402220,1705858355168,-771.85,0.00043835,31]
[312402221,1705858355178,-569.27,0.00043835,31]
[312402222,1705858355188,-2338.74,0.00043835,31]
[312402223,1705858355198,-1004.91,0.00043835,31]
[312402224,1705858355207,-599.51,0.00043835,31]
[312402225,1705858355217,-683.46,0.00043835,31]
[312402226,1705858355226,-1665.32,0.00043835,31]
[312402227,1705858355236,-500.0,0.00043835,31]
[312402228,1705858355246,-1953.86,0.00043835,31]
[312402229,1705858355255,-239.93162407,0.00043835,31]
[312402230,1705858355264,-500.0,0.00043835,31]
[312402231,1705858355273,-1307.02,0.00043835,31]
[312402232,1705858355283,-2015.53,0.00043835,31]
[312402233,1705858355292,-1641.41,0.00043835,31]
[312402234,1705858355302,-1542.52,0.00043835,31]
[312402235,1705858355312,-538.04,0.00043835,31]
[312402236,1705858355321,-1132.72,0.00043835,31]
[312402237,1705858355330,-500.0,0.00043835,31]
[312402238,1705858355340,-549.73766452,0.00043835,31]
[312402239,1705858355350,-536.23,0.00043835,31]
[312402240,1705858355359,-500.0,0.00043835,31]
[312402241,1705858355369,-500.0,0.00043835,7]
[312402242,1705858355378,-500.0,0.00043835,31]
[312402243,1705858355387,-500.0,0.00043835,31]
[312402244,1705858355396,-500.0,0.00043835,31]
[312402245,1705858355406,-860.42,0.00043835,31]
[312402246,1705858355415,-639.35,0.00043835,31]
[312402247,1705858355424,-500.0,0.00043835,31]
[312402248,1705858355434,-529.07,0.00043835,31]
[312402249,1705858355444,-500.0,0.00043835,31]
[312402250,1705858355453,-1102.2,0.00043835,31]
[312402251,1705858355463,-2003.86,0.00043835,31]
[312402252,1705858355473,-500.0,0.00043835,5]
[312402253,1705858355482,-2129.93,0.00043835,31]
[312402254,1705858355492,-971.37,0.00043835,31]
[312402255,1705858355502,-500.0,0.00043835,31]
[312402256,1705858355511,-500.0,0.00043835,31]
[312402257,1705858355520,-500.0,0.00043835,31]
[312402258,1705858355530,-1208.05,0.00043835,31]
[312402259,1705858355539,-3628.57,0.00043835,31]
[312402260,1705858355549,-4143.87,0.00043835,31]
[312402261,1705858355558,-3744.16,0.00043835,31]
[312402262,1705858355567,-563.17,0.00043835,31]
[312402263,1705858355577,-8492.56,0.00043835,31]
[312402264,1705858355586,-510.28476436,0.00043835,31]
[312402265,1705858355595,-555.83,0.00043835,10]
[312402266,1705858355605,-2561.14,0.00043835,31]
[312402267,1705858355614,-500.0,0.00043835,31]
[312402268,1705858355624,-1207.99,0.00043835,31]
[312402269,1705858355633,-1152.01,0.00043835,31]
[312402270,1705858355642,-1944.17,0.00043835,31]
[312402271,1705858355651,-688.17,0.00043835,31]
[312402272,1705858355660,-766.84,0.00043835,31]
[312402273,1705858355669,-726.63,0.00043835,31]
[312402274,1705858355679,-500.0,0.00043835,31]
[312402275,1705858355689,-4478.54,0.00043835,31]
[312402276,1705858355699,-1741.83,0.00043835,31]
[312402277,1705858355709,-4116.72,0.00043835,31]
[312402278,1705858355718,-719.71,0.00043835,31]
[312402279,1705858355727,-2317.89,0.00043835,31]
[312402280,1705858355737,-778.89,0.00043835,31]
[312402281,1705858355746,-17414.88,0.00043835,31]
[312402282,1705858355756,-1683.36,0.00043835,31]
[312402283,1705858355765,-1457.58,0.00043835,31]
[312402284,1705858355775,-506.89,0.00043835,31]
[312402285,1705858355785,-500.0,0.00043835,31]
[312402286,1705858355794,-585.2,0.00043835,31]
[312402287,1705858355803,-712.61,0.00043835,31]
[312402288,1705858355812,-777.78,0.00043835,31]
[312402289,1705858355947,-1992.63,0.00043835,31]
[312402290,1705858355957,-1297.78,0.00043835,31]
[312402291,1705858355967,-500.0,0.00043835,31]
[312402292,1705858355979,-1673.34,0.00043835,31]
[312402293,1705858355989,-500.0,0.00043835,2]
[312402294,1705858355999,-1276.24,0.00043835,31]
[312402295,1705858356009,-1515.16,0.00043835,31]
[312402296,1705858356019,-676.02,0.00043835,31]
[312402297,1705858356029,-519.99,0.00043835,31]
[312402298,1705858356040,-559.3,0.00043835,31]
[312402299,1705858356050,-832.1,0.00043835,31]
[312402300,1705858356062,-500.0,0.00043835,31]
[312402301,1705858356073,-1114.3,0.00043835,31]
[312402302,1705858356086,-617.68,0.00043835,31]
[312402303,1705858356096,-4316.85,0.00043835,31]
[312402304,1705858356106,-698.31,0.00043835,31]
[312402305,1705858356118,-500.0,0.00043835,31]
[312402306,1705858356128,-15611.05,0.00043835,31]
[312402307,1705858356138,-1105.83,0.00043835,31]
[312402308,1705858356148,-500.0,0.00043835,31]
[312402309,1705858356160,-578.73,0.00043835,31]
[312402310,1705858356172,-500.0,0.00043835,31]
[312402311,1705858356182,-758.0,0.00043835,31]
[312402312,1705858356191,-3781.38,0.00043835,31]
[312402313,1705858356201,-500.0,0.00043835,31]
[312402314,1705858356212,-500.0,0.00043835,31]
[312402315,1705858356221,-5511.39,0.00043835,31]
[312402316,1705858356231,-570.79,0.00043835,31]
[312402317,1705858356241,-1000.0,0.00043835,30]
[312402318,1705858356251,-1748.73,0.00043835,31]
[312402319,1705858356262,-206.68438287,0.00043835,7]
[312402320,1705858356271,-1625.11,0.00043835,31]
[312402321,1705858356281,-1977.31,0.00043835,31]
[312402322,1705858356290,-500.0,0.00043835,31]
[312402323,1705858356299,-500.0,0.00043835,31]
[312402324,1705858356309,-500.0,0.00043835,31]
[312402325,1705858356318,-682.73,0.00043835,31]
[312402326,1705858356328,-997.22,0.00043835,31]
[312402327,1705858356338,-1819.37,0.00043835,31]
[312402328,1705858356348,-908.78,0.00043835,31]
[312402329,1705858356358,-915.75,0.00043835,31]
[312402330,1705858356367,-537.99,0.00043835,30]
[312402331,1705858356378,-1258.24,0.00043835,31]
[312402332,1705858356388,-1216.0,0.00043835,31]
[312402333,1705858356397,-500.0,0.00043835,31]
[312402334,1705858356407,-1270.4,0.00043835,31]
[312402335,1705858356417,-2077.28,0.00043835,31]
[312402336,1705858356427,-500.0,0.00043835,31]
[312402337,1705858356437,-2480.88,0.00043835,31]
[312402338,1705858356448,-500.0,0.00043835,31]
[312402339,1705858356457,-2428.09,0.00043835,31]
[312402340,1705858356468,-940.03,0.00043835,31]
[312402341,1705858356477,-742.17,0.00043835,31]
[312402342,1705858356487,-2895.16,0.00043835,31]
[312402343,1705858356498,-500.0,0.00043835,2]
[312402344,1705858356507,-638.01,0.00043835,31]
[312402345,1705858356517,-958.94,0.00043835,31]
[312402346,1705858356527,-653.31,0.00043835,31]
[312402347,1705858356537,-3096.04,0.00043835,31]
[312402348,1705858356547,-2622.21,0.00043835,31]
[312402349,1705858356557,-1315.5,0.00043835,31]
[312402350,1705858356567,-906.52,0.00043835,31]
[312402351,1705858356577,-500.0,0.00043835,31]
[312402352,1705858356587,-539.71,0.00043835,31]
[312402353,1705858356597,-1262.2,0.00043835,31]
[312402354,1705858356607,-2322.86,0.00043835,31]
[312402355,1705858356617,-500.0,0.00043835,31]
[312402356,1705858356627,-1416.87,0.00043835,31]
[312402357,1705858356637,-1205.84,0.00043835,31]
[312402358,1705858356647,-625.74,0.00043835,31]
[312402359,1705858356657,-4179.57,0.00043835,31]
[312402360,1705858356668,-500.0,0.00043835,31]
[312402361,1705858356678,-500.0,0.00043835,31]
[312402362,1705858356687,-250.0,0.00043835,31]
[312402363,1705858356698,-992.96,0.00043835,31]
[312402364,1705858356707,-500.0,0.00043835,31]
[312402365,1705858356718,-815.51,0.00043835,31]
[312402366,1705858356728,-500.0,0.00043835,31]
[312402367,1705858356738,-547.37,0.00043835,2]
[312402368,1705858356747,-500.0,0.00043835,31]
[312402369,1705858356757,-500.0,0.00043835,31]
[312402370,1705858356767,-500.0,0.00043835,31]
[312402371,1705858356777,-1425.95,0.00043835,31]
[312402372,1705858356786,-981.19,0.00043835,31]
[312402373,1705858356796,-500.0,0.00043835,31]
[312402374,1705858356806,-827.44,0.00043835,31]
[312402375,1705858356815,-10855.62,0.00043835,31]
[312402376,1705858356825,-1200.56,0.00043835,31]
[312402377,1705858356836,-1017.46,0.00043835,31]
[312402378,1705858356846,-500.0,0.00043835,2]
[312402379,1705858356857,-500.0,0.00043835,31]
[312402380,1705858356867,-500.0,0.00043835,31]
[312402381,1705858356878,-9610.43,0.00043835,31]
[312402382,1705858356887,-500.0,0.00043835,31]
[312402383,1705858356898,-2400.0,0.00043836,30]
[312402384,1705858356907,-30038.12501176,0.00043868,30]
[312402385,1705858356918,-8170.0,0.0004389,3]
[312402386,1705858356928,-300.0,0.0004389,5]
[312402387,1705858356938,-300.0,0.0004389,5]
[312402388,1705858356947,-150.0,0.00043892,15]
[312402389,1705858356957,-150.0,0.00043892,15]
[312402390,1705858356966,-150.0,0.00043892,15]
[312402391,1705858356976,-150.0,0.00043892,15]
[312402392,1705858356986,-150.0,0.00043892,15]
[312402393,1705858356996,-2010.4,0.00043895,2]
[312402394,1705858357006,-5039.66252844,0.000439,15]
[312402395,1705858357016,-30000.0,0.000439,2]
[312402396,1705858357025,-502.220257,0.000439,7]
[312402397,1705858357035,-658.48508664,0.000439,30]
[312402398,1705858357045,-400.0,0.00043945,120]
[312402399,1705858357055,-211.89940388,0.0004395,120]
[312402400,1705858357065,-317.9,0.00043965,2]
[312402401,1705858357077,-200.0,0.00043987,37]
[312402402,1705858357087,-200.0,0.00043987,42]
[312402403,1705858357097,-152.0,0.00043991,7]
[312402404,1705858357106,-50000.0,0.00044,14]
[312402405,1705858357117,-300.0,0.00044,5]
[312402406,1705858357126,-400.0,0.00044,4]
[312402407,1705858357136,-2020.2269992,0.00044,14]
[312402408,1705858357147,-8652.08232601,0.00044,7]
[312402409,1705858357157,-500.0000001,0.00044,22]
[312402410,1705858357167,-12625.0,0.00044,2]
[312402411,1705858357177,-253.76,0.00044,14]
[312402412,1705858357186,-150.0,0.00044,10]
[312402413,1705858357196,-1001.0,0.00044,5]
[312402414,1705858357206,-20176.4463703,0.00044,3]
[312402415,1705858357216,-1000.0,0.00044,14]
[312402416,1705858357225,-206466.7,0.00044,15]
[312402417,1705858357235,-2065.3654817,0.00044,2]
[312402418,1705858357245,-6745.09762681,0.00044,2]
[312402419,1705858357254,-3997.0,0.00044,14]
[312402420,1705858357264,-2114.678589,0.00044,2]
[312402421,1705858357274,-400.0,0.00044,2]
[312402422,1705858357283,-2000.0,0.00044,2]
[312402423,1705858357292,-2000.0,0.00044,2]
[312402424,1705858357302,-2000.0,0.00044,2]
[312402425,1705858357312,-2000.0,0.00044,2]
[312402426,1705858357322,-2000.0,0.00044,2]
[312402427,1705858357331,-2000.0,0.00044,2]
[312402428,1705858357341,-2000.0,0.00044,2]
[312402429,1705858357350,-2000.0,0.00044,2]
[312402430,1705858357360,-398.57792958,0.00044,60]
[312402431,1705858357369,-533.54545579,0.00044,120]
[312402432,1705858357380,-1876.50537623,0.00044,30]
[312402433,1705858357390,-1242.3376816,0.00044,30]
[312402434,1705858357399,-152.7576,0.00044,30]
[312402435,1705858357409,-485.99600955,0.00044,60]
[312402436,1705858357418,-158.18747845,0.00044,60]
[312402437,1705858357428,-635.76818247,0.00044,30]
[312402438,1705858357438,-1012.86634263,0.00044,31]
[312402439,1705858357447,-164.49801175,0.00044,32]
[312402440,1705858357456,-249.999999,0.00044,30]
[312402441,1705858357465,-730.12448252,0.00044,30]
[312402442,1705858357475,-203.17,0.00044,30]
[312402443,1705858357484,-344.0,0.00044,30]
[312402444,1705858357495,-199.999999,0.00044,5]
[312402445,1705858357504,-33188.28551626,0.00044,3]
[312402446,1705858357514,-18842.04,0.00044,7]
[312402447,1705858357523,-5301.01,0.00044,7]
[312402448,1705858357532,-8995.51,0.00044,7]
[312402449,1705858357542,-2688.9671191,0.00044,45]
[312402450,1705858357552,-1800.0,0.00044,3]
[312402451,1705858357561,-167.65831491,0.00044,15]
[312402452,1705858357570,-167.65831491,0.00044,14]
[312402453,1705858357580,-167.65831491,0.00044,14]
[312402454,1705858357590,-167.65831491,0.00044,17]
[312402455,1705858357599,-167.65831491,0.00044,17]
[312402456,1705858357609,-167.65831491,0.00044,18]
[312402457,1705858357618,-167.65831491,0.00044,15]
[312402458,1705858357627,-167.65831491,0.00044,14]
[312402459,1705858357637,-167.65831491,0.00044,16]
[312402460,1705858357646,-167.65831491,0.00044,14]
[312402461,1705858357656,-167.65831491,0.00044,14]
[312402462,1705858357666,-167.65831491,0.00044,14]
[312402463,1705858357675,-167.65831491,0.00044,16]
[312402464,1705858357684,-167.65831491,0.00044,16]
[312402465,1705858357693,-167.65831491,0.00044,17]
[312402466,1705858357702,-167.65831491,0.00044,16]
[312402467,1705858357712,-167.65831491,0.00044,17]
[312402468,1705858357721,-167.65831491,0.00044,15]
[312402469,1705858357730,-167.65831491,0.00044,18]
[312402470,1705858357739,-167.65831491,0.00044,14]
[312402471,1705858357749,-167.65831491,0.00044,15]
[312402472,1705858357758,-167.65831491,0.00044,16]
[312402473,1705858357767,-167.65831491,0.00044,14]
[312402474,1705858357776,-167.65831491,0.00044,18]
[312402475,1705858357785,-167.65831491,0.00044,15]
[312402476,1705858357794,-167.65831491,0.00044,15]
[312402477,1705858357803,-167.65831491,0.00044,14]
[312402478,1705858357812,-167.65831491,0.00044,14]
[312402479,1705858357822,-167.65831491,0.00044,18]
[312402480,1705858357831,-167.65831491,0.00044,16]
[312402481,1705858357840,-167.65831491,0.00044,18]
[312402482,1705858357849,-167.65831491,0.00044,18]
[312402483,1705858357858,-167.65831491,0.00044,18]
[312402484,1705858357868,-167.65831491,0.00044,16]
[312402485,1705858357877,-167.65831491,0.00044,17]
[312402486,1705858357886,-167.65831491,0.00044,17]
[312402487,1705858357895,-167.65831491,0.00044,17]
[312402488,1705858358209,-167.65831491,0.00044,17]
[312402489,1705858358221,-167.65831491,0.00044,15]
[312402490,1705858358230,-167.65831491,0.00044,16]
[312402491,1705858358240,-167.65831491,0.00044,16]
[312402492,1705858358249,-167.65831491,0.00044,15]
[312402493,1705858358259,-167.65831491,0.00044,18]
[312402494,1705858358268,-167.65831491,0.00044,18]
[312402495,1705858358279,-167.65831491,0.00044,14]
[312402496,1705858358289,-167.65831491,0.00044,18]
[312402497,1705858358300,-167.65831491,0.00044,18]
[312402498,1705858358310,-167.65831491,0.00044,15]
[312402499,1705858358321,-167.65831491,0.00044,14]
[312402500,1705858358331,-167.65831491,0.00044,18]
[312402501,1705858358342,-200.445656,0.00044,30]
[312402502,1705858358354,-1255.04196671,0.0004402,10]
[312402503,1705858358363,-500.0,0.00044055,14]
[312402504,1705858358374,-1580.93,0.00044085,15]
[312402505,1705858358385,-200.0,0.000441,2]